fUSD/lending_fUSD_20250606
["ID","MTS","AMOUNT","RATE_DAILY","PERIOD"]
[364801091,1749245475636,-1882.05,0.00028712,5]
[364801092,1749245475645,-951.78,0.00028712,5]
[364801093,1749245475655,-151.0,0.00028712,7]
[364801094,1749245475664,-598.87,0.00028712,5]
[364801095,1749245475673,-522.25889901,0.00028712,5]
[364801096,1749245475683,-480.0,0.00028712,5]
[364801097,1749245475693,-1613.93,0.00028712,5]
[364801098,1749245475703,-817.65,0.00028712,5]
[364801099,1749245475713,-3420.12,0.00028712,5]
[364801100,1749245475723,-480.0,0.00028712,5]
[364801101,1749245475733,-151.0,0.00028712,7]
[364801102,1749245475744,-1779.32,0.00028712,5]
[364801103,1749245475754,-1294.16,0.00028712,5]
[364801104,1749245475764,-1215.8,0.00028712,5]
[364801105,1749245475774,-1228.33,0.00028712,5]
[364801106,1749245475783,-632.6,0.00028712,5]
[364801107,1749245475793,-480.0,0.00028712,5]
[364801108,1749245475804,-480.0,0.00028712,5]
[364801109,1749245475814,-692.3,0.00028712,5]
[364801110,1749245475824,-1300.84,0.00028712,5]
[364801111,1749245475834,-12112.58,0.00028712,5]
[364801112,1749245475847,-151.0,0.00028712,7]
[364801113,1749245475857,-151.0,0.00028712,7]
[364801114,1749245475867,-497.69,0.00028712,5]
[364801115,1749245475877,-683.2,0.00028712,5]
[364801116,1749245475887,-1266.65,0.00028712,5]
[364801117,1749245475897,-154.473411,0.00028712,7]
[364801118,1749245475906,-705.09,0.00028712,5]
[364801119,1749245475916,-4732.68,0.00028712,5]
[364801120,1749245475926,-717.45,0.00028712,5]
[364801121,1749245475936,-501.63,0.00028712,5]
[364801122,1749245475946,-974.5,0.00028712,5]
[364801123,1749245475956,-4416.75,0.00028712,5]
[364801124,1749245475965,-1656.72,0.00028712,5]
[364801125,1749245475975,-480.0,0.00028712,5]
[364801126,1749245475984,-480.0,0.00028712,5]
[364801127,1749245475995,-480.0,0.00028712,5]
[364801128,1749245476005,-682.68,0.00028712,5]
[364801129,1749245476018,-480.0,0.00028712,5]
[364801130,1749245476030,-607.26,0.00028712,5]
[364801131,1749245476040,-7562.75,0.00028712,5]
[364801132,1749245476050,-597.24,0.00028712,5]
[364801133,1749245476059,-3844.59,0.00028712,5]
[364801134,1749245476069,-621.94,0.00028712,5]
[364801135,1749245476079,-1661.61,0.00028712,5]
[364801136,1749245476089,-672.61,0.00028712,5]
[364801137,1749245476101,-480.0,0.00028712,5]
[364801138,1749245476111,-480.0,0.00028712,5]
[364801139,1749245476123,-2171.5,0.00028712,5]
[364801140,1749245476133,-487.01,0.00028712,5]
[364801141,1749245476143,-3523.57,0.00028712,5]
[364801142,1749245476153,-1412.37,0.00028712,5]
[364801143,1749245476162,-904.82,0.00028712,5]
[364801144,1749245476172,-16871.99,0.00028712,5]
[364801145,1749245476182,-590.09,0.00028712,5]
[364801146,1749245476192,-151.0,0.00028712,7]
[364801147,1749245476202,-3605.79,0.00028712,5]
[364801148,1749245476211,-1584.5,0.00028712,5]
[364801149,1749245476221,-569.63,0.00028712,5]
[364801150,1749245476231,-1945.39,0.00028712,5]
[364801151,1749245476241,-241.696265,0.00028712,7]
[364801152,1749245476251,-151.0,0.00028712,7]
[364801153,1749245476260,-151.0,0.00028712,7]
[364801154,1749245476271,-384.12657,0.00028712,7]
[364801155,1749245476280,-3465.3,0.00028712,5]
[364801156,1749245476290,-241.696265,0.00028712,7]
[364801157,1749245476300,-384.12657,0.00028712,7]
[364801158,1749245476310,-1081.7,0.00028712,5]
[364801159,1749245476320,-2006.64,0.00028712,5]
[364801160,1749245476331,-531.04,0.00028712,5]
[364801161,1749245476342,-607.53,0.00028712,5]
[364801162,1749245476351,-1607.92,0.00028712,5]
[364801163,1749245476361,-480.0,0.00028712,5]
[364801164,1749245476371,-1750.07,0.00028712,5]
[364801165,1749245476381,-1119.57,0.00028712,5]
[364801166,1749245476391,-911.9,0.00028712,5]
[364801167,1749245476401,-480.0,0.00028712,5]
[364801168,1749245476411,-1710.78,0.00028712,5]
[364801169,1749245476420,-210.49716,0.00028712,7]
[364801170,1749245476431,-689.26,0.00028712,5]
[364801171,1749245476441,-480.0,0.00028712,5]
[364801172,1749245476451,-210.49716,0.00028712,7]
[364801173,1749245476462,-1070.37,0.00028712,5]
[364801174,1749245476473,-623.94,0.00028712,5]
[364801175,1749245476483,-1791.7,0.00028712,5]
[364801176,1749245476494,-1965.72,0.00028712,5]
[364801177,1749245476505,-200.14153648,0.00028712,5]
[364801178,1749245476514,-1996.69,0.00028712,5]
[364801179,1749245476524,-3288.44,0.00028712,5]
[364801180,1749245476534,-1032.5,0.00028712,5]
[364801181,1749245476544,-151.0,0.00028712,7]
[364801182,1749245476555,-771.7,0.00028712,5]
[364801183,1749245476567,-549.3699348,0.00028712,5]
[364801184,1749245476578,-1627.97,0.00028712,5]
[364801185,1749245476589,-670.33,0.00028712,5]
[364801186,1749245476600,-575.24,0.00028712,5]
[364801187,1749245476610,-4755.29,0.00028712,5]
[364801188,1749245476620,-2179.19,0.00028712,5]
[364801189,1749245476630,-1950.69,0.00028712,5]
[364801190,1749245476641,-622.31,0.00028712,5]
[364801191,1749245476651,-152.03274,0.00028712,7]
[364801192,1749245476911,-888.42,0.00028712,5]
[364801193,1749245476922,-1453.42,0.00028712,5]
[364801194,1749245476933,-2483.76,0.00028712,5]
[364801195,1749245476943,-683.26,0.00028712,5]
[364801196,1749245476953,-152.03274,0.00028712,7]
[364801197,1749245476963,-480.0,0.00028712,5]
[364801198,1749245476974,-747.35,0.00028712,5]
[364801199,1749245476985,-5842.1,0.00028712,5]
[364801200,1749245476994,-5650.54,0.00028712,5]
[364801201,1749245477004,-2077.01,0.00028712,5]
[364801202,1749245477014,-950.27,0.00028712,5]
[364801203,1749245477028,-734.81,0.00028712,5]
[364801204,1749245477039,-480.0,0.00028712,5]
[364801205,1749245477051,-480.0,0.00028712,5]
[364801206,1749245477062,-638.71,0.00028712,5]
[364801207,1749245477072,-958.16,0.00028712,5]
[364801208,1749245477082,-1117.56,0.00028712,5]
[364801209,1749245477093,-3319.06,0.00028712,5]
[364801210,1749245477103,-10869.49,0.00028712,5]
[364801211,1749245477113,-480.0,0.00028712,5]
[364801212,1749245477124,-992.85,0.00028712,5]
[364801213,1749245477134,-530.29,0.00028712,2]
[364801214,1749245477144,-1496.95,0.00028712,5]
[364801215,1749245477154,-516.46,0.00028712,5]
[364801216,1749245477164,-63805.06,0.00028712,5]
[364801217,1749245477173,-150.0,0.00028714,7]
[364801218,1749245477183,-150.0,0.00028714,7]
[364801219,1749245477192,-212.14241746,0.00028724,7]
[364801220,1749245477202,-271.23323775,0.00028724,7]
[364801221,1749245477212,-150.0,0.00028725,2]
[364801222,1749245477222,-1028.16663308,0.00028728,19]
[364801223,1749245477231,-390.27346316,0.00028733,2]
[364801224,1749245477241,-1332.0,0.00028739,5]
[364801225,1749245477250,-467.0,0.00028739,5]
[364801226,1749245477261,-1966.0,0.00028739,5]
[364801227,1749245477271,-363.07586443,0.0002874,30]
[364801228,1749245477280,-769.37504606,0.0002874,30]
[364801229,1749245477291,-150.0,0.00028752,7]
[364801230,1749245477301,-150.0,0.00028754,7]
[364801231,1749245477311,-566.87,0.00028755,2]
[364801232,1749245477322,-212.14241746,0.00028756,7]
[364801233,1749245477331,-271.23323775,0.00028756,7]
[364801234,1749245477341,-150.0,0.00028758,7]
[364801235,1749245477351,-150.0,0.00028758,7]
[364801236,1749245477361,-1332.0,0.00028766,5]
[364801237,1749245477371,-467.0,0.00028766,5]
[364801238,1749245477381,-1966.0,0.00028766,5]
[364801239,1749245477392,-1000.0,0.00028767,15]
[364801240,1749245477402,-1000.0,0.00028767,15]
[364801241,1749245477412,-468.58740865,0.00028767,15]
[364801242,1749245477421,-1864.56,0.00028767,2]
[364801243,1749245477431,-162.53229819,0.00028776,2]
[364801244,1749245477441,-150.0,0.0002878,2]
[364801245,1749245477451,-150.0,0.00028782,7]
[364801246,1749245477460,-150.0,0.00028783,2]
[364801247,1749245477469,-190.209,0.00028783,2]
[364801248,1749245477478,-151.36,0.00028783,2]
[364801249,1749245477488,-249.141,0.00028783,2]
[364801250,1749245477497,-150.0,0.00028783,2]
[364801251,1749245477506,-150.0,0.00028783,2]
[364801252,1749245477515,-150.0,0.00028783,2]
[364801253,1749245477525,-150.0,0.00028783,2]
[364801254,1749245477535,-212.14241746,0.00028788,7]
[364801255,1749245477544,-271.23323775,0.00028788,7]
[364801256,1749245477554,-1332.0,0.00028794,5]
[364801257,1749245477564,-467.0,0.00028794,5]
[364801258,1749245477575,-1966.0,0.00028794,5]
[364801259,1749245477587,-500.0,0.00028794,7]
[364801260,1749245477597,-150.0,0.00028801,7]
[364801261,1749245477607,-150.0,0.00028801,7]
[364801262,1749245477616,-150.0,0.00028814,7]
[364801263,1749245477625,-150.0,0.00028815,2]
[364801264,1749245477635,-212.14241746,0.0002882,7]
[364801265,1749245477644,-271.23323775,0.0002882,7]
[364801266,1749245477654,-500.0,0.00028821,5]
[364801267,1749245477664,-1352.20410333,0.00028821,5]
[364801268,1749245477674,-478.03710801,0.00028821,5]
[364801269,1749245477683,-1985.32218555,0.00028821,5]
[364801270,1749245477693,-4000.0,0.00028845,4]
[364801271,1749245477702,-150.0,0.00028845,7]
[364801272,1749245477712,-150.0,0.00028845,7]
[364801273,1749245477722,-363.07586443,0.00028849,30]
[364801274,1749245477731,-769.37504606,0.00028849,30]
[364801275,1749245477741,-212.14241746,0.00028852,7]
[364801276,1749245477750,-271.23323775,0.00028852,7]
[364801277,1749245477761,-150.0,0.00028854,7]
[364801278,1749245477771,-150.0,0.0002886,7]
[364801279,1749245477780,-200.0,0.00028868,2]
[364801280,1749245477790,-151.674937,0.00028876,7]
[364801281,1749245477799,-151.0,0.00028876,7]
[364801282,1749245477809,-151.0,0.00028876,7]
[364801283,1749245477818,-151.0,0.00028876,7]
[364801284,1749245477830,-151.0,0.00028876,7]
[364801285,1749245477842,-151.0,0.00028876,7]
[364801286,1749245477852,-494.472491,0.00028876,7]
[364801287,1749245477862,-494.472491,0.00028876,7]
[364801288,1749245477872,-151.0,0.00028876,7]
[364801289,1749245477881,-151.0,0.00028876,7]
[364801290,1749245477891,-151.0,0.00028876,7]
[364801291,1749245477900,-151.0,0.00028876,7]
[364801292,1749245477910,-151.0,0.00028876,7]
[364801293,1749245477920,-151.0,0.00028876,7]
[364801294,1749245477930,-151.0,0.00028876,7]
[364801295,1749245477940,-151.0,0.00028876,7]
[364801296,1749245477949,-151.0,0.00028876,7]
[364801297,1749245477959,-151.0,0.00028876,7]
[364801298,1749245477968,-151.0,0.00028876,7]
[364801299,1749245477978,-151.0,0.00028876,7]
[364801300,1749245477989,-480.0,0.00028876,5]
[364801301,1749245477999,-465.05568,0.00028876,7]
[364801302,1749245478009,-651.31,0.00028876,5]
[364801303,1749245478024,-151.0,0.00028876,7]
[364801304,1749245478034,-480.0,0.00028876,5]
[364801305,1749245478043,-483.33,0.00028876,5]
[364801306,1749245478054,-538.52,0.00028876,5]
[364801307,1749245478065,-480.0,0.00028876,5]
[364801308,1749245478075,-480.0,0.00028876,2]
[364801309,1749245478084,-480.0,0.00028876,5]
[364801310,1749245478096,-480.0,0.00028876,5]
[364801311,1749245478106,-685.83,0.00028876,5]
[364801312,1749245478115,-480.0,0.00028876,5]
[364801313,1749245478124,-549.23,0.00028876,5]
[364801314,1749245478134,-500.02,0.00028876,5]
[364801315,1749245478144,-619.23,0.00028876,5]
[364801316,1749245478153,-480.0,0.00028876,5]
[364801317,1749245478164,-538.98,0.00028876,5]
[364801318,1749245478173,-480.0,0.00028876,5]
[364801319,1749245478183,-516.51,0.00028876,5]
[364801320,1749245478193,-480.0,0.00028876,5]
[364801321,1749245478203,-480.0,0.00028876,5]
[364801322,1749245478213,-480.0,0.00028876,5]
[364801323,1749245478223,-508.36,0.00028876,5]
[364801324,1749245478233,-480.0,0.00028876,5]
[364801325,1749245478243,-594.92,0.00028876,5]
[364801326,1749245478459,-480.0,0.00028876,5]
[364801327,1749245478469,-655.89,0.00028876,5]
[364801328,1749245478479,-480.0,0.00028876,5]
[364801329,1749245478488,-533.19,0.00028876,5]
[364801330,1749245478497,-480.0,0.00028876,5]
[364801331,1749245478507,-508.07,0.00028876,5]
[364801332,1749245478517,-480.0,0.00028876,5]
[364801333,1749245478527,-504.81,0.00028876,5]
[364801334,1749245478537,-151.0,0.00028876,7]
[364801335,1749245478548,-480.0,0.00028876,5]
[364801336,1749245478558,-480.0,0.00028876,5]
[364801337,1749245478567,-454.52618568,0.00028876,5]
[364801338,1749245478576,-556.66,0.00028876,5]
[364801339,1749245478586,-656.61,0.00028876,5]
[364801340,1749245478595,-480.0,0.00028876,5]
[364801341,1749245478604,-480.0,0.00028876,5]
[364801342,1749245478613,-480.0,0.00028876,5]
[364801343,1749245478623,-880.83,0.00028876,5]
[364801344,1749245478633,-1046.06,0.00028876,5]
[364801345,1749245478642,-480.0,0.00028876,5]
[364801346,1749245478652,-480.0,0.00028876,5]
[364801347,1749245478662,-480.0,0.00028876,5]
[364801348,1749245478671,-480.0,0.00028876,5]
[364801349,1749245478681,-151.0,0.00028876,7]
[364801350,1749245478691,-515.2826118,0.00028876,5]
[364801351,1749245478703,-480.0,0.00028876,5]
[364801352,1749245478712,-480.0,0.00028876,5]
[364801353,1749245478722,-636.86,0.00028876,5]
[364801354,1749245478732,-492.47,0.00028876,5]
[364801355,1749245478742,-151.0,0.00028876,7]
[364801356,1749245478751,-527.03,0.00028876,5]
[364801357,1749245478761,-527.07,0.00028876,5]
[364801358,1749245478771,-480.0,0.00028876,5]
[364801359,1749245478781,-829.98,0.00028876,5]
[364801360,1749245478791,-480.0,0.00028876,5]
[364801361,1749245478800,-480.0,0.00028876,5]
[364801362,1749245478810,-480.0,0.00028876,5]
[364801363,1749245478819,-492.47,0.00028876,5]
[364801364,1749245478829,-151.0,0.00028876,7]
[364801365,1749245478839,-480.0,0.00028876,5]
[364801366,1749245478849,-523.07,0.00028876,5]
[364801367,1749245478859,-480.0,0.00028876,5]
[364801368,1749245478868,-480.0,0.00028876,5]
[364801369,1749245478878,-480.0,0.00028876,5]
[364801370,1749245478887,-229.196697,0.00028876,7]
[364801371,1749245478897,-229.196697,0.00028876,7]
[364801372,1749245478907,-480.0,0.00028876,5]
[364801373,1749245478917,-800.29,0.00028876,5]
[364801374,1749245478927,-480.0,0.00028876,5]
[364801375,1749245478937,-480.0,0.00028876,5]
[364801376,1749245478947,-702.95,0.00028876,5]
[364801377,1749245478956,-480.0,0.00028876,5]
[364801378,1749245478967,-434.909736,0.00028876,7]
[364801379,1749245478976,-434.909736,0.00028876,7]
[364801380,1749245478986,-480.0,0.00028876,5]
[364801381,1749245478995,-480.0,0.00028876,5]
[364801382,1749245479005,-527.54,0.00028876,5]
[364801383,1749245479017,-5472.06,0.00028876,5]
[364801384,1749245479030,-2440.57,0.00028876,5]
[364801385,1749245479040,-1814.61,0.00028876,5]
[364801386,1749245479050,-480.0,0.00028876,5]
[364801387,1749245479060,-5858.97,0.00028876,5]
[364801388,1749245479070,-1000.0,0.00028876,2]
[364801389,1749245479080,-2363.07,0.00028876,5]
[364801390,1749245479090,-480.0,0.00028876,5]
[364801391,1749245479100,-585.97,0.00028876,5]
[364801392,1749245479110,-480.0,0.00028876,5]
[364801393,1749245479120,-659.35,0.00028876,5]
[364801394,1749245479129,-1396.08,0.00028876,5]
[364801395,1749245479140,-642.87,0.00028876,5]
[364801396,1749245479150,-941.0,0.00028876,5]
[364801397,1749245479160,-900.91,0.00028876,5]
[364801398,1749245479170,-843.14,0.00028876,5]
[364801399,1749245479180,-506.99,0.00028876,5]
[364801400,1749245479191,-4095.06247078,0.00028876,5]
[364801401,1749245479577,-6650.99752922,0.00028876,5]
[364801402,1749245479588,-1353.33,0.00028876,5]
[364801403,1749245479598,-480.0,0.00028876,5]
[364801404,1749245479608,-1533.93,0.00028876,5]
[364801405,1749245479618,-1127.16,0.00028876,5]
[364801406,1749245479628,-1096.57,0.00028876,5]
[364801407,1749245479637,-638.2,0.00028876,5]
[364801408,1749245479647,-530.78045756,0.00028876,5]
[364801409,1749245480747,-11764.00980684,0.00021799,2]
[364801410,1749245480756,-11764.00980684,0.00022655,2]
[364801411,1749245480766,-480.0,0.00027397,5]
[364801412,1749245480775,-2087.41,0.00027397,5]
[364801413,1749245480785,-480.0,0.00027397,5]
[364801414,1749245480796,-480.0,0.00027397,2]
[364801415,1749245480805,-480.0,0.00027397,5]
[364801416,1749245480815,-480.0,0.00027397,5]
[364801417,1749245480826,-874.11,0.00027397,5]
[364801418,1749245480835,-480.0,0.00027397,5]
[364801419,1749245480844,-480.0,0.00027397,5]
[364801420,1749245480854,-2587.14,0.00027397,5]
[364801421,1749245480863,-1084.36,0.00027397,5]
[364801422,1749245480872,-2860.84,0.00027397,5]
[364801423,1749245480882,-1078.542,0.00027533,2]
[364801424,1749245480892,-480.0,0.00027561,5]
[364801425,1749245480901,-2087.41,0.00027561,5]
[364801426,1749245480910,-480.0,0.00027561,5]
[364801427,1749245480919,-480.0,0.00027561,2]
[364801428,1749245480929,-480.0,0.00027561,5]
[364801429,1749245480938,-480.0,0.00027561,5]
[364801430,1749245480947,-874.11,0.00027561,5]
[364801431,1749245480956,-480.0,0.00027561,5]
[364801432,1749245480965,-2587.14,0.00027561,5]
[364801433,1749245480974,-1084.36,0.00027561,5]
[364801434,1749245480984,-2860.84,0.00027561,5]
[364801435,1749245480994,-480.0,0.00027726,5]
[364801436,1749245481003,-2087.41,0.00027726,5]
[364801437,1749245481013,-480.0,0.00027726,5]
[364801438,1749245481027,-480.0,0.00027726,2]
[364801439,1749245481036,-480.0,0.00027726,5]
[364801440,1749245481045,-480.0,0.00027726,5]
[364801441,1749245481054,-874.11,0.00027726,5]
[364801442,1749245481064,-480.0,0.00027726,5]
[364801443,1749245481073,-2587.14,0.00027726,5]
[364801444,1749245481083,-1084.36,0.00027726,5]
[364801445,1749245481093,-480.0,0.0002789,5]
[364801446,1749245481103,-2087.41,0.0002789,5]
[364801447,1749245481113,-480.0,0.0002789,2]
[364801448,1749245481123,-480.0,0.0002789,5]
[364801449,1749245481133,-480.0,0.0002789,5]
[364801450,1749245481143,-151.0,0.0002789,7]
[364801451,1749245481152,-874.11,0.0002789,5]
[364801452,1749245481161,-480.0,0.0002789,5]
[364801453,1749245481170,-168.174064,0.0002789,7]
[364801454,1749245481179,-2587.14,0.0002789,5]
[364801455,1749245481189,-151.0,0.00028035,7]
[364801456,1749245481199,-168.174064,0.00028044,7]
[364801457,1749245481209,-2032.718886,0.00028054,7]
[364801458,1749245481218,-2087.41,0.00028054,5]
[364801459,1749245481227,-480.0,0.00028054,5]
[364801460,1749245481237,-480.0,0.00028054,2]
[364801461,1749245481246,-480.0,0.00028054,5]
[364801462,1749245481255,-874.11,0.00028054,5]
[364801463,1749245481265,-317.34252888,0.00028054,5]
[364801464,1749245481274,-2032.718886,0.00028054,7]
[364801465,1749245481283,-363.448933,0.00028054,7]
[364801466,1749245481292,-363.448933,0.00028218,7]
[364801467,1749245481302,-2032.718886,0.00028219,7]
[364801468,1749245481312,-2087.41,0.00028219,5]
[364801469,1749245481322,-480.0,0.00028219,2]
[364801470,1749245481331,-480.0,0.00028219,5]
[364801471,1749245481340,-151.0,0.00028219,7]
[364801472,1749245481351,-874.11,0.00028219,5]
[364801473,1749245481361,-2087.41,0.00028383,5]
[364801474,1749245481371,-480.0,0.00028383,2]
[364801475,1749245481380,-480.0,0.00028383,5]
[364801476,1749245481390,-874.11,0.00028383,5]
[364801477,1749245481399,-498.71,0.00028547,5]
[364801478,1749245481409,-2087.41,0.00028547,5]
[364801479,1749245481418,-480.0,0.00028547,2]
[364801480,1749245481427,-480.0,0.00028547,5]
[364801481,1749245481437,-151.0,0.00028547,7]
[364801482,1749245481446,-874.11,0.00028547,5]
[364801483,1749245481455,-480.0,0.00028712,5]
[364801484,1749245481465,-498.71,0.00028712,5]
[364801485,1749245481474,-2032.718886,0.00028712,7]
[364801486,1749245481484,-2087.41,0.00028712,5]
[364801487,1749245481495,-480.0,0.00028712,2]
[364801488,1749245481504,-480.0,0.00028712,5]
[364801489,1749245481513,-874.11,0.00028712,5]
[364801490,1749245481523,-2203.19954244,0.00028876,5]
[364801491,1749245481533,-1416.92,0.00028876,5]
[364801492,1749245481542,-1360.31,0.00028876,5]
[364801493,1749245481552,-868.83,0.00028876,5]
[364801494,1749245481561,-2950.26,0.00028876,5]
[364801495,1749245481571,-731.97,0.00028876,5]
[364801496,1749245481581,-1184.81,0.00028876,5]
[364801497,1749245481590,-1342.0,0.00028876,5]
[364801498,1749245481600,-480.0,0.00028876,5]
[364801499,1749245481609,-731.22,0.00028876,5]
[364801500,1749245481620,-1139.52,0.00028876,5]
[364801501,1749245481629,-2337.68,0.00028876,5]
[364801502,1749245481639,-480.0,0.00028876,5]
[364801503,1749245481648,-480.0,0.00028876,5]
[364801504,1749245481658,-1831.6,0.00028876,5]
[364801505,1749245481668,-763.29,0.00028876,5]
[364801506,1749245481678,-1132.32,0.00028876,5]
[364801507,1749245481688,-3008.51,0.00028876,5]
[364801508,1749245481698,-2113.05,0.00028876,5]
[364801509,1749245481707,-480.0,0.00028876,5]
[364801510,1749245481717,-862.65,0.00028876,5]
[364801511,1749245481726,-480.0,0.00028876,5]
[364801512,1749245481736,-2923.97,0.00028876,5]
[364801513,1749245481746,-1453.13,0.00028876,5]
[364801514,1749245481755,-4156.92,0.00028876,5]
[364801515,1749245481765,-480.0,0.00028876,5]
[364801516,1749245481775,-1274.65,0.00028876,5]
[364801517,1749245481785,-1332.06,0.00028876,5]
[364801518,1749245481794,-1082.7,0.00028876,5]
[364801519,1749245481804,-480.0,0.00028876,5]
[364801520,1749245481814,-1025.06,0.00028876,5]
[364801521,1749245481823,-480.0,0.00028876,5]
[364801522,1749245481833,-1551.16,0.00028876,5]
[364801523,1749245481844,-1882.05,0.00028876,5]
[364801524,1749245481854,-951.78,0.00028876,5]
[364801525,1749245481863,-598.87,0.00028876,5]
[364801526,1749245481873,-579.90692628,0.00028876,5]
[364801527,1749245481883,-1613.93,0.00028876,5]
[364801528,1749245481893,-817.65,0.00028876,5]
[364801529,1749245481903,-3420.12,0.00028876,5]
[364801530,1749245481913,-480.0,0.00028876,5]
[364801531,1749245481922,-1779.32,0.00028876,5]
[364801532,1749245481932,-1294.16,0.00028876,5]
[364801533,1749245481942,-1215.8,0.00028876,5]
[364801534,1749245481952,-1228.33,0.00028876,5]
[364801535,1749245481962,-632.6,0.00028876,5]
[364801536,1749245481973,-480.0,0.00028876,5]
[364801537,1749245481982,-480.0,0.00028876,5]
[364801538,1749245481994,-692.3,0.00028876,5]
[364801539,1749245482006,-1300.84,0.00028876,5]
[364801540,1749245482020,-12112.58,0.00028876,5]
[364801541,1749245482031,-497.69,0.00028876,5]
[364801542,1749245482040,-683.2,0.00028876,5]
[364801543,1749245482050,-1266.65,0.00028876,5]
[364801544,1749245482064,-705.09,0.00028876,5]
[364801545,1749245482073,-4732.68,0.00028876,5]
[364801546,1749245482083,-717.45,0.00028876,5]
[364801547,1749245482094,-501.63,0.00028876,5]
[364801548,1749245482105,-974.5,0.00028876,5]
[364801549,1749245482115,-4416.75,0.00028876,5]
[364801550,1749245482127,-1656.72,0.00028876,5]
[364801551,1749245482137,-480.0,0.00028876,5]
[364801552,1749245482148,-480.0,0.00028876,5]
[364801553,1749245482158,-480.0,0.00028876,5]
[364801554,1749245482168,-682.68,0.00028876,5]
[364801555,1749245482178,-629.61201637,0.00028876,5]
[364801556,1749245482188,-607.26,0.00028876,5]
[364801557,1749245482198,-7562.75,0.00028876,5]
[364801558,1749245482207,-597.24,0.00028876,5]
[364801559,1749245482217,-3844.59,0.00028876,5]
[364801560,1749245482228,-621.94,0.00028876,5]
[364801561,1749245482238,-1661.61,0.00028876,5]
[364801562,1749245482248,-672.61,0.00028876,5]
[364801563,1749245482258,-480.0,0.00028876,5]
[364801564,1749245482268,-480.0,0.00028876,5]
[364801565,1749245482278,-2171.5,0.00028876,5]
[364801566,1749245482288,-487.01,0.00028876,5]
[364801567,1749245482299,-3523.57,0.00028876,5]
[364801568,1749245482309,-1412.37,0.00028876,5]
[364801569,1749245482318,-904.82,0.00028876,5]
[364801570,1749245482328,-16871.99,0.00028876,5]
[364801571,1749245482338,-590.09,0.00028876,5]
[364801572,1749245482349,-3605.79,0.00028876,5]
[364801573,1749245482359,-1584.5,0.00028876,5]
[364801574,1749245482368,-569.63,0.00028876,5]
[364801575,1749245482378,-1945.39,0.00028876,5]
[364801576,1749245482388,-3465.3,0.00028876,5]
[364801577,1749245482398,-1081.7,0.00028876,5]
[364801578,1749245482408,-2006.64,0.00028876,5]
[364801579,1749245482418,-531.04,0.00028876,5]
[364801580,1749245482431,-607.53,0.00028876,5]
[364801581,1749245482442,-1607.92,0.00028876,5]
[364801582,1749245482452,-480.0,0.00028876,5]
[364801583,1749245482462,-1750.07,0.00028876,5]
[364801584,1749245482472,-1119.57,0.00028876,5]
[364801585,1749245482481,-911.9,0.00028876,5]
[364801586,1749245482491,-480.0,0.00028876,5]
[364801587,1749245482501,-1710.78,0.00028876,5]
[364801588,1749245482511,-689.26,0.00028876,5]
[364801589,1749245482521,-480.0,0.00028876,5]
[364801590,1749245482531,-1070.37,0.00028876,5]